bitfinex/quotes_SOLUSD_20250305
["timestamp","ask_amount","ask_price","bid_price","bid_amount"]
[1741184633298,82.9,143.69,143.61,84.2329]
[1741184633519,82.9,143.68,143.61,84.2329]
[1741184633800,20.0,143.65,143.61,82.3]
[1741184633999,20.0,143.65,143.6,18.64964886]
[1741184634184,20.0,143.64,143.59,82.333]
[1741184634494,0.6962,143.62,143.6,0.28432314]
[1741184634694,0.6962,143.62,143.59,82.333]
[1741184635102,2.4369,143.62,143.59,82.333]
[1741184635287,2.4369,143.62,143.59,0.033]
[1741184635494,22.4369,143.62,143.59,0.033]
[1741184638802,20.6962,143.62,143.59,0.033]
[1741184639502,22.4369,143.62,143.59,0.033]
[1741184639978,2.4369,143.62,143.59,0.033]
[1741184640381,2.4369,143.62,143.59,0.0001]
[1741184642683,20.0,143.58,143.53,1.9031]
[1741184642883,2.4375,143.58,143.53,1.9031]
[1741184643602,2.4375,143.58,143.54,0.14216157]
[1741184645290,0.6964,143.58,143.54,18.933972]
[1741184646702,0.6964,143.58,143.54,0.28432314]
[1741184646905,2.4375,143.58,143.54,0.28432314]
[1741184647085,2.4375,143.58,143.54,0.14216157]
[1741184648705,0.6964,143.58,143.55,0.14216157]
[1741184649105,1.7409,143.6,143.55,0.14216157]
[1741184649688,0.6963,143.61,143.56,0.14216157]
[1741184649990,1.7407,143.62,143.56,0.14216157]
[1741184649991,83.5962,143.63,143.57,0.14216157]
[1741184650515,0.6962,143.63,143.6,0.14216157]
[1741184650928,0.6961,143.65,143.62,0.28432314]
[1741184651708,0.6959,143.68,143.64,0.14216157]
[1741184651909,0.6959,143.68,143.64,0.28432314]
[1741184652714,0.03,143.66,143.64,0.28432314]
[1741184652893,0.03,143.66,143.65,18.79181043]
[1741184653296,0.03,143.66,143.65,18.933972]
[1741184653493,0.03,143.66,143.65,101.233972]
[1741184654018,0.03,143.66,143.65,203.913272]
[1741184654223,0.03,143.66,143.65,196.951972]
[1741184656409,0.03,143.66,143.65,190.333972]
[1741184656730,0.03,143.66,143.65,171.4]
[1741184656896,0.03,143.66,143.61,6.4851]
[1741184657210,0.03,143.66,143.61,88.7851]
[1741184657396,0.03,143.66,143.62,18.933972]
[1741184657599,0.03,143.66,143.61,88.7851]
[1741184658211,0.03,143.66,143.62,0.28432314]
[1741184659124,0.03,143.66,143.62,51.60318488]
[1741184659305,0.03,143.66,143.62,133.90318488]
[1741184659511,0.03,143.66,143.62,101.233972]
[1741184661000,0.03,143.66,143.62,82.58432314]
[1741184661414,0.03,143.66,143.62,0.14216157]
[1741184662206,0.03,143.66,143.61,0.28432314]
[1741184662413,0.03,143.66,143.61,58.56638488]
[1741184662727,0.03,143.66,143.63,18.933972]
[1741184663227,0.03,143.66,143.62,18.933972]
[1741184664225,0.03,143.66,143.62,25.896572]
[1741184664421,0.03,143.66,143.62,140.86578488]
[1741184664625,0.03,143.66,143.64,18.933972]
[1741184666227,0.03,143.66,143.64,25.895572]
[1741184666619,0.03,143.66,143.64,18.933972]
[1741184667003,0.03,143.66,143.64,140.86498488]
[1741184667226,0.03,143.66,143.65,25.453872]
[1741184667714,0.03,143.66,143.65,66.5456636]
[1741184668228,0.03,143.66,143.65,237.9456636]
[1741184668436,0.03,143.66,143.65,236.48438488]
[1741184669015,0.03,143.66,143.65,196.853872]
[1741184670134,0.03,143.66,143.65,107.753872]
[1741184670436,0.03,143.66,143.6,84.0569]
[1741184670620,0.03,143.66,143.61,18.933972]
[1741184671628,0.03,143.66,143.61,18.64964886]
[1741184672143,0.03,143.66,143.62,0.28432314]
[1741184673121,0.03,143.66,143.59,18.68264886]
[1741184673554,0.03,143.66,143.6,0.28432314]
[1741184673848,0.03,143.66,143.59,0.033]
[1741184673849,82.9,143.65,143.59,0.033]
[1741184674019,82.9,143.65,143.59,0.17516157]
[1741184674413,82.9,143.65,143.59,0.033]
[1741184675220,2.4365,143.64,143.59,0.033]
[1741184675423,85.3365,143.64,143.59,0.033]
[1741184677040,83.5961,143.64,143.59,0.033]
[1741184677917,85.3365,143.64,143.59,0.033]
[1741184678337,88.8174,143.64,143.59,0.033]
[1741184678544,20.0,143.61,143.59,0.033]
[1741184679546,20.6963,143.6,143.59,0.033]
[1741184682028,2.4372,143.6,143.53,1.8443]
[1741184682228,82.9,143.59,143.52,0.033]
[1741184683134,82.9,143.59,143.53,0.28432314]
[1741184683543,2.4375,143.58,143.53,0.28432314]
[1741184684044,2.4375,143.58,143.52,0.17516157]
[1741184684423,2.4375,143.58,143.52,0.033]
[1741184686146,85.3375,143.58,143.52,0.033]
[1741184692046,2.4375,143.58,143.52,0.033]
[1741184694322,20.0,143.57,143.52,0.033]
[1741184695244,102.9,143.57,143.52,0.033]
[1741184696443,2.4379,143.56,143.52,0.17516157]
[1741184700254,0.6965,143.56,143.53,0.28432314]
[1741184700552,0.7264,143.59,143.55,0.28432314]
[1741184700748,0.7264,143.59,143.56,0.14216157]
[1741184700950,0.03,143.59,143.56,0.14216157]
[1741184701458,0.7264,143.59,143.56,0.14216157]
[1741184701636,0.03,143.59,143.56,0.14216157]
[1741184701838,0.03,143.59,143.58,0.14216157]
[1741184702033,0.03,143.59,143.58,101.233972]
[1741184702234,0.03,143.59,143.58,128.64219596]
[1741184702538,0.03,143.59,143.58,217.74219596]
[1741184702943,0.03,143.66,143.6,0.14216157]
[1741184703147,0.03,143.66,143.63,0.14216157]
[1741184703339,0.03,143.66,143.64,0.14216157]
[1741184704277,0.03,143.66,143.65,18.933972]
[1741184704552,0.03,143.66,143.65,25.895272]
[1741184704760,0.03,143.66,143.65,18.933972]
[1741184704935,0.03,143.66,143.65,25.895272]
[1741184705139,0.03,143.66,143.65,18.933972]
[1741184705558,0.03,143.66,143.65,25.895272]
[1741184705761,0.03,143.66,143.65,18.933972]
[1741184706665,0.03,143.66,143.65,229.93125142]
[1741184707342,0.03,143.66,143.65,190.333972]
[1741184708366,0.03,143.66,143.65,100.94964886]
[1741184708560,0.03,143.66,143.65,101.233972]
[1741184708742,0.03,143.66,143.65,18.933972]
[1741184708936,0.03,143.66,143.64,1.7618]
[1741184709350,0.03,143.66,143.65,0.28432314]
[1741184710140,0.03,143.66,143.65,18.933972]
[1741184710362,0.03,143.66,143.65,0.28432314]
[1741184712037,0.03,143.66,143.65,7.24562314]
[1741184712237,0.03,143.66,143.65,0.28432314]
[1741184712868,0.03,143.66,143.65,108.195272]
[1741184714163,0.03,143.66,143.65,142.29247317]
[1741184714466,0.03,143.66,143.65,140.83125142]
[1741184714677,0.03,143.66,143.65,149.23515142]
[1741184715376,0.03,143.66,143.65,238.33515142]
[1741184715745,0.03,143.7,143.67,0.28432314]
[1741184715944,0.03,143.7,143.69,0.28432314]
[1741184717857,0.03,143.7,143.69,0.14216157]
[1741184718057,0.03,143.7,143.69,0.28432314]
[1741184720360,0.03,143.7,143.69,140.82935142]
[1741184720553,0.03,143.7,143.69,229.92935142]
[1741184721266,0.03,143.7,143.69,190.333972]
[1741184721976,0.03,143.7,143.69,101.233972]
[1741184723973,0.03,143.7,143.69,108.193372]
[1741184724281,0.03,143.7,143.69,140.82935142]
[1741184724664,0.03,143.7,143.69,128.5754816]
[1741184725054,0.03,143.7,143.69,217.6754816]
[1741184725253,0.03,143.7,143.69,267.6754816]
[1741184725667,0.03,143.74,143.71,0.28432314]
[1741184725867,0.03,143.74,143.73,39.3160816]
[1741184726264,0.03,143.74,143.73,18.933972]
[1741184727268,0.03,143.74,143.73,0.28432314]
[1741184727655,0.03,143.74,143.73,18.933972]
[1741184728079,0.03,143.74,143.73,0.28432314]
[1741184728657,0.03,143.74,143.73,18.933972]
[1741184729272,0.03,143.74,143.73,108.191372]
[1741184729772,0.03,143.74,143.73,109.65166222]
[1741184730283,0.03,143.74,143.73,102.69426222]
[1741184730480,0.03,143.74,143.73,101.233972]
[1741184730978,0.03,143.74,143.73,18.933972]
[1741184731686,0.03,143.74,143.73,18.64964886]
[1741184731982,0.03,143.74,143.73,18.933972]
[1741184732880,0.03,143.74,143.73,0.28432314]
[1741184733462,0.03,143.74,143.73,18.933972]
[1741184734284,0.03,143.74,143.73,108.191372]
[1741184734586,0.03,143.74,143.73,140.80007821]
[1741184734788,0.03,143.74,143.73,101.233972]
[1741184735877,0.03,143.74,143.73,101.09181043]
[1741184736076,0.03,143.74,143.73,101.233972]
[1741184736475,0.03,143.74,143.72,5.96]
[1741184736958,0.03,143.74,143.73,0.28432314]
[1741184738973,0.03,143.74,143.73,0.14216157]
[1741184739963,0.03,143.74,143.69,1.7948]
[1741184740167,0.03,143.74,143.68,88.26]
[1741184740491,0.03,143.74,143.69,18.933972]
[1741184740683,0.03,143.74,143.69,18.64964886]
[1741184740882,0.03,143.74,143.7,18.933972]
[1741184741477,0.03,143.74,143.7,0.28432314]
[1741184743484,0.03,143.74,143.65,177.393]
[1741184743680,0.03,143.74,143.65,95.2541]
[1741184743862,0.03,143.74,143.66,18.933972]
[1741184745389,0.03,143.74,143.66,58.50327821]
[1741184745574,0.03,143.74,143.68,18.933972]
[1741184745891,0.03,143.74,143.68,101.233972]
[1741184747388,0.03,143.74,143.68,100.94964886]
[1741184747698,0.03,143.74,143.69,0.28432314]
[1741184747996,0.03,143.74,143.69,0.14216157]
[1741184748176,0.03,143.74,143.69,0.28432314]
[1741184751889,0.03,143.74,143.7,18.64964886]
[1741184752076,0.03,143.74,143.71,0.28432314]
[1741184752277,0.03,143.74,143.73,0.28432314]
[1741184752684,0.03,143.74,143.7,0.28432314]
[1741184753087,0.03,143.74,143.7,18.933972]
[1741184757804,0.03,143.74,143.7,108.192672]
[1741184758587,0.03,143.74,143.7,101.233972]
[1741184762615,0.03,143.74,143.7,108.192672]
[1741184763014,0.03,143.74,143.7,197.292672]
[1741184763188,0.03,143.74,143.7,219.58776197]
[1741184763519,0.03,143.74,143.7,199.198072]
[1741184763891,0.03,143.74,143.7,192.239372]
[1741184765020,0.03,143.74,143.7,219.58796197]
[1741184765322,0.03,143.74,143.72,18.933972]
[1741184765690,0.03,143.74,143.72,190.333972]
[1741184765890,0.03,143.74,143.72,210.72366197]
[1741184766110,0.03,143.74,143.72,190.333972]
[1741184766637,0.03,143.74,143.72,197.291572]
[1741184767120,0.03,143.74,143.72,217.68126197]
[1741184768627,0.03,143.74,143.73,20.39430588]
[1741184768929,0.03,143.74,143.73,18.933972]
[1741184769426,0.03,143.74,143.73,212.18399771]
[1741184769629,0.03,143.74,143.73,210.72366197]
[1741184770319,0.03,143.74,143.73,190.333972]
[1741184770497,0.03,143.74,143.73,100.94964886]
[1741184770700,0.03,143.74,143.73,101.233972]
[1741184770901,0.03,143.74,143.73,100.94964886]
[1741184771200,0.03,143.74,143.73,101.233972]
[1741184774010,0.03,143.74,143.73,108.191372]
[1741184775814,0.03,143.74,143.73,109.65178555]
[1741184776118,0.03,143.74,143.73,130.04147552]
[1741184776617,0.03,143.74,143.73,109.65178555]
[1741184776814,0.03,143.74,143.73,101.233972]
[1741184778004,0.03,143.74,143.73,108.191372]
[1741184779024,0.03,143.74,143.73,101.233972]
[1741184779519,0.03,143.74,143.73,108.191372]
[1741184779714,0.03,143.74,143.71,171.4]
[1741184780097,0.03,143.74,143.72,18.933972]
[1741184781220,0.03,143.74,143.69,82.333]
[1741184782004,0.03,143.74,143.7,18.933972]
[1741184784001,0.03,143.74,143.7,25.892672]
[1741184785224,0.03,143.74,143.7,18.933972]
[1741184787330,0.03,143.74,143.7,101.233972]
[1741184787529,0.03,143.74,143.7,108.192872]
[1741184787726,0.03,143.74,143.69,1.49382939]
[1741184787931,0.03,143.74,143.69,0.033]
[1741184788135,0.03,143.74,143.7,0.14216157]
[1741184791031,0.03,143.74,143.69,82.333]
[1741184791405,0.03,143.74,143.7,18.933972]
[1741184798214,0.03,143.74,143.7,197.292672]
[1741184798433,0.03,143.74,143.7,210.34191544]
[1741184798835,0.03,143.74,143.7,197.292772]
[1741184799332,0.03,143.74,143.7,212.18561544]
[1741184800310,0.03,143.74,143.7,192.177572]
[1741184801116,0.03,143.74,143.7,199.136472]
[1741184802439,0.03,143.74,143.7,192.177572]
[1741184802623,0.03,143.74,143.7,190.333972]
[1741184803211,0.03,143.74,143.7,197.292772]
[1741184804746,0.03,143.74,143.7,210.34201544]
[1741184804934,0.03,143.74,143.72,31.98321544]
[1741184805115,0.03,143.74,143.72,37.92321544]
[1741184805713,0.03,143.74,143.72,24.873972]
[1741184806634,0.03,143.74,143.72,107.03181043]
[1741184806841,0.03,143.74,143.73,0.14216157]
[1741184810417,0.03,143.74,143.69,0.033]
[1741184810618,7.177,143.74,143.69,0.033]
[1741184811141,0.6957,143.73,143.69,0.033]
[1741184813456,0.03,143.74,143.73,20.28432314]
[1741184813645,0.03,143.74,143.73,37.92321544]
[1741184813954,0.03,143.74,143.73,24.873972]
[1741184814646,0.03,143.74,143.73,37.92321544]
[1741184815142,0.03,143.74,143.73,24.873972]
[1741184815519,0.03,143.74,143.73,51.831372]
[1741184815744,0.03,143.74,143.73,24.873972]
[1741184815943,0.03,143.74,143.73,31.831372]
[1741184816143,0.03,143.74,143.73,44.88061544]
[1741184816933,0.03,143.74,143.73,216.28061544]
[1741184817639,0.03,143.75,143.74,18.933972]
[1741184817943,0.03,143.75,143.74,204.84347198]
[1741184818146,0.0001,143.75,143.74,203.38321544]
[1741184818723,0.0001,143.75,143.74,190.333972]
[1741184818924,0.0001,143.75,143.74,101.233972]
[1741184819523,0.0001,143.75,143.74,204.84358055]
[1741184819723,0.03,143.8,143.77,38.933972]
[1741184819924,0.03,143.8,143.79,31.98321544]
[1741184820541,0.03,143.8,143.79,190.333972]
[1741184820734,0.03,143.8,143.79,82.58432314]
[1741184821044,0.03,143.8,143.75,178.3565]
[1741184821222,0.03,143.8,143.75,171.4]
[1741184821427,0.03,143.8,143.76,18.933972]
[1741184822759,0.03,143.8,143.76,18.64964886]
[1741184823046,0.03,143.8,143.77,0.14216157]
[1741184823249,0.03,143.8,143.76,18.933972]
[1741184823453,0.03,143.8,143.76,18.79181043]
[1741184823625,0.03,143.8,143.77,0.14216157]
[1741184827526,0.03,143.8,143.78,18.79181043]
[1741184827946,0.03,143.8,143.79,0.14216157]
[1741184831471,0.03,143.8,143.79,101.233972]
[1741184831971,0.03,143.8,143.79,130.47640917]
[1741184832263,0.03,143.8,143.79,219.57640917]
[1741184832751,0.03,143.8,143.79,212.62190917]
[1741184833231,0.03,143.8,143.79,219.57640917]
[1741184834954,0.03,143.83,143.82,20.28432314]
[1741184835132,0.03,143.83,143.82,66.70577959]
[1741184835654,0.03,143.83,143.82,65.24650917]
[1741184835833,0.03,143.83,143.82,24.873972]
[1741184836263,0.03,143.83,143.82,5.94]
[1741184836752,0.03,143.83,143.82,6.22432314]
[1741184837554,0.03,143.83,143.82,95.47742314]
[1741184837957,0.03,143.83,143.82,114.127072]
[1741184838256,0.03,143.83,143.82,203.227072]
[1741184838755,0.03,143.83,143.82,196.273972]
[1741184839145,0.03,143.83,143.82,203.227072]
[1741184839960,0.03,143.83,143.82,223.59960917]
[1741184840173,0.03,143.83,143.82,196.273972]
[1741184841051,0.03,143.83,143.82,197.287072]
[1741184841349,0.03,143.83,143.82,190.333972]
[1741184841553,0.03,143.83,143.82,101.233972]
[1741184845162,0.03,143.83,143.82,108.187072]
[1741184846461,0.03,143.83,143.82,101.233972]
[1741184847535,0.03,143.83,143.82,82.3]
[1741184847763,0.03,143.83,143.82,82.58432314]
[1741184848761,0.03,143.83,143.82,0.28432314]
[1741184849967,0.03,143.83,143.78,0.033]
[1741184850170,0.03,143.83,143.78,18.966972]
[1741184850346,2.4633,143.83,143.78,0.033]
[1741184850545,2.4633,143.83,143.78,0.31732314]
[1741184851153,2.4633,143.83,143.78,0.17516157]
[1741184851378,2.4633,143.83,143.79,0.28432314]
[1741184852477,0.7252,143.83,143.79,0.14216157]
[1741184853367,0.03,143.83,143.8,18.933972]
[1741184853737,0.03,143.83,143.8,210.69443251]
[1741184853943,0.03,143.83,143.82,39.29443251]
[1741184854164,0.03,143.83,143.82,121.59443251]
[1741184854468,0.03,143.83,143.82,128.54753251]
[1741184854647,0.03,143.83,143.82,101.233972]
[1741184855960,0.03,143.83,143.82,82.58432314]
[1741184856764,0.03,143.83,143.81,25.887472]
[1741184857078,0.03,143.83,143.81,217.64793251]
[1741184857307,0.03,143.83,143.82,39.29443251]
[1741184857778,0.03,143.83,143.82,124.90691996]
[1741184857942,0.03,143.83,143.82,174.90691996]
[1741184858143,0.03,143.83,143.82,262.54743251]
[1741184858769,0.03,143.83,143.82,269.50053251]
[1741184859480,0.03,143.85,143.84,2.28432314]
[1741184859770,0.03,143.89,143.88,59.29443251]
[1741184859949,0.03,143.89,143.88,143.05310424]
[1741184860272,0.03,143.95,143.92,20.0]
[1741184860454,0.03,143.95,143.94,39.29443251]
[1741184860776,0.03,143.96,143.95,0.28432314]
[1741184860943,27.76339417,144.01,143.97,0.28432314]
[1741184861149,15.42421157,144.01,144.0,18.933972]
[1741184861364,0.03,144.03,144.0,101.233972]
[1741184862349,0.03,144.01,143.98,0.28432314]
[1741184864258,0.03,144.01,143.95,0.28432314]
[1741184864594,0.03,144.01,143.94,82.3]
[1741184864751,0.7243,144.01,143.95,0.28432314]
[1741184865077,86.4639,144.01,143.93,18.64964886]
[1741184865256,86.4639,144.01,143.94,0.28432314]
[1741184865747,86.4639,144.01,143.94,0.14216157]
[1741184866152,86.4639,144.01,143.92,177.32]
[1741184866372,82.9,144.0,143.92,5.92]
[1741184866667,82.9,144.0,143.93,0.28432314]
[1741184866871,0.6944,143.99,143.93,18.933972]
[1741184867059,2.4306,143.99,143.93,18.933972]
[1741184867376,2.4306,143.99,143.93,0.28432314]
[1741184867573,2.4306,143.99,143.93,0.14216157]
[1741184867771,82.9,143.98,143.88,93.15356155]
[1741184867975,82.9,143.98,143.88,99.07356155]
[1741184868278,82.9,143.98,143.89,18.64964886]
[1741184868785,0.6945,143.97,143.9,0.28432314]
[1741184869075,2.4309,143.97,143.9,0.28432314]
[1741184870056,5.9038,143.97,143.88,5.92]
[1741184870469,26.4791,143.94,143.87,18.64964886]
[1741184870760,26.4791,143.94,143.86,5.92]
[1741184870973,1.0746,143.92,143.87,0.28432314]
[1741184871381,1.0746,143.92,143.85,18.64964886]
[1741184871581,1.0746,143.92,143.86,0.28432314]
[1741184872580,1.0746,143.92,143.85,18.64964886]
[1741184872965,5.9062,143.91,143.83,82.3]
[1741184873170,88.8062,143.91,143.81,95.02]
[1741184873370,88.8062,143.91,143.81,89.1]
[1741184873560,88.8062,143.91,143.82,0.28432314]
[1741184874175,2.4319,143.91,143.82,82.58432314]
[1741184874382,2.4319,143.91,143.86,0.033]
[1741184874584,0.6948,143.91,143.86,0.31732314]
[1741184874756,8.216,143.94,143.86,0.31732314]
[1741184874757,0.6947,143.93,143.86,0.31732314]
[1741184874962,0.6947,143.93,143.88,0.28432314]
[1741184875162,0.6947,143.93,143.9,0.14216157]
[1741184875573,1.0746,143.96,143.9,0.28432314]
[1741184875778,0.6946,143.95,143.9,0.28432314]
[1741184876978,0.6946,143.96,143.9,0.28432314]
[1741184877778,2.4311,143.96,143.9,0.28432314]
[1741184879178,2.4311,143.96,143.89,18.933972]
[1741184879372,20.0,143.95,143.89,101.233972]
[1741184880179,6.4059,143.98,143.89,197.283672]
[1741184880380,2.431,143.97,143.89,190.333972]
[1741184881089,5.9039,143.97,143.89,190.333972]
[1741184881492,5.9039,143.97,143.89,82.3]
[1741184881695,83.9746,143.96,143.86,5.953]
[1741184881996,82.9,143.95,143.87,0.28432314]
[1741184882495,82.9,143.95,143.86,5.953]
[1741184882886,6.3038,143.94,143.86,5.953]
[1741184883089,88.8055,143.93,143.86,5.953]
[1741184883291,82.9,143.92,143.86,5.953]
[1741184883681,21.0746,143.88,143.86,0.0001]
[1741184883999,6.1618,143.87,143.8,10.88656155]
[1741184884297,89.0618,143.87,143.81,0.28432314]
[1741184884795,89.0618,143.87,143.79,14.83217683]
[1741184884796,1.9999,143.84,143.79,14.83217683]
[1741184884998,1.9999,143.84,143.77,10.88734724]
[1741184884999,20.0,143.8,143.77,10.88734724]
[1741184885198,20.0,143.79,143.77,10.88734724]
[1741184885378,20.0,143.78,143.77,10.88734724]
[1741184885979,82.9,143.85,143.78,0.28432314]
[1741184886380,20.0,143.82,143.78,0.28432314]
[1741184886580,20.0,143.82,143.77,10.88734724]
[1741184886795,20.0,143.81,143.77,10.88734724]
[1741184887203,0.6954,143.8,143.77,10.88734724]
[1741184888406,2.4339,143.8,143.77,0.033]
[1741184888697,0.6954,143.8,143.77,0.033]
[1741184889485,2.4339,143.8,143.77,0.033]
[1741184890014,83.5954,143.8,143.77,0.033]
[1741184890212,0.6953,143.82,143.77,0.033]
[1741184890898,20.0,143.8,143.77,0.033]
[1741184891404,0.6954,143.79,143.77,0.033]
[1741184891703,102.9,143.8,143.77,0.033]
[1741184893191,20.0,143.8,143.77,0.033]
[1741184893597,88.59579997,143.83,143.77,0.033]
[1741184894086,82.9,143.83,143.77,0.033]
[1741184894582,88.52067217,143.83,143.77,0.033]
[1741184897408,82.9,143.83,143.77,0.033]
[1741184898091,5.60597781,143.85,143.78,18.933972]
[1741184898296,82.9,143.86,143.78,18.933972]
[1741184898496,20.0,143.85,143.78,101.233972]
[1741184899212,20.0,143.87,143.78,101.233972]
[1741184899394,82.9,143.9,143.78,190.333972]
[1741184899591,82.9,143.89,143.78,190.333972]
[1741184900194,20.0,143.86,143.78,190.333972]
[1741184900393,20.0,143.85,143.78,100.94964886]
[1741184900987,20.0,143.85,143.79,0.28432314]
[1741184901507,20.0,143.85,143.78,82.3]
[1741184903588,20.0,143.85,143.79,0.28432314]
[1741184904799,20.0,143.85,143.78,82.3]
[1741184905315,20.0,143.85,143.79,0.28432314]
[1741184906295,82.9,143.87,143.79,18.933972]
[1741184906594,82.9,143.87,143.79,25.888372]
[1741184906797,82.9,143.87,143.79,0.28432314]
[1741184906995,82.9,143.87,143.78,82.3]
[1741184907295,82.9,143.86,143.78,0.28432314]
[1741184907510,84.8999,143.86,143.78,0.28432314]
[1741184907716,82.9,143.86,143.78,0.28432314]
[1741184908193,82.9,143.86,143.78,18.933972]
[1741184910198,82.9,143.86,143.78,0.28432314]
[1741184910416,20.0,143.83,143.78,0.28432314]
[1741184910721,20.0,143.82,143.78,0.28432314]
[1741184911095,82.9,143.85,143.78,18.933972]
[1741184912495,82.9,143.85,143.78,25.888872]
[1741184912695,82.9,143.85,143.78,18.933972]
[1741184913322,82.9,143.85,143.78,0.28432314]
[1741184913618,82.9,143.85,143.77,1.8407]
[1741184913796,82.9,143.84,143.77,1.8407]
[1741184914412,82.9,143.84,143.78,0.28432314]
[1741184915523,20.0,143.81,143.77,1.8407]
[1741184917509,82.9,143.83,143.77,1.8407]
[1741184919619,82.9,143.83,143.78,0.28432314]
[1741184920418,82.9,143.83,143.77,1.8407]
[1741184920719,82.86759243,143.83,143.77,1.8407]
[1741184921317,20.0,143.8,143.77,1.8407]
[1741184921514,2.0299,143.87,143.77,1.8407]
[1741184921515,20.0,143.79,143.77,1.8407]
[1741184922419,20.0,143.79,143.77,0.033]
[1741184922904,20.0,143.78,143.77,0.0001]
[1741184923616,20.0,143.77,143.73,1.7629]
[1741184924425,20.0,143.77,143.71,0.033]
[1741184924634,20.0,143.77,143.71,0.31732314]
[1741184924806,20.0,143.77,143.71,18.966972]
[1741184925007,82.86759243,143.8,143.71,18.966972]
[1741184925207,82.86759243,143.79,143.71,18.966972]
[1741184927435,82.86759243,143.79,143.71,0.31732314]
[1741184927615,82.86759243,143.79,143.71,0.033]
[1741184927933,82.86759243,143.79,143.71,0.31732314]
[1741184929810,82.86759243,143.78,143.71,0.31732314]
[1741184931838,20.0,143.74,143.69,0.033]
[1741184932049,82.86759243,143.73,143.66,0.033]
[1741184932235,82.86759243,143.73,143.66,18.68264886]
[1741184932912,82.86759243,143.73,143.67,0.28432314]
[1741184933636,82.86759243,143.73,143.66,0.033]
[1741184934414,88.33988519,143.73,143.66,0.033]
[1741184934749,88.33988519,143.73,143.66,0.31732314]
[1741184935048,82.86759243,143.73,143.66,0.31732314]
[1741184936637,88.51829139,143.73,143.66,0.31732314]
[1741184936825,82.86759243,143.73,143.66,0.31732314]
[1741184937222,82.86759243,143.73,143.66,18.966972]
[1741184939919,20.0,143.74,143.66,101.266972]
[1741184940228,20.0,143.74,143.66,82.61732314]
[1741184940737,19.5,143.74,143.66,82.61732314]
[1741184941002,102.36759243,143.74,143.66,0.033]
[1741184941374,82.86759243,143.73,143.66,0.033]
[1741184941944,82.86759243,143.72,143.66,0.033]
[1741184942355,18.64964886,143.71,143.65,0.033]
[1741184942747,82.86759243,143.7,143.65,0.033]
[1741184942948,18.64964886,143.68,143.62,0.033]
[1741184943173,82.86759243,143.67,143.62,0.033]
[1741184943369,82.86759243,143.66,143.62,0.033]
[1741184944157,82.86759243,143.66,143.62,0.31732314]
[1741184946281,20.0,143.69,143.62,101.266972]
[1741184946878,20.0,143.69,143.62,82.61732314]
[1741184947878,82.86759243,143.71,143.63,18.64964886]
[1741184948488,82.86759243,143.71,143.64,0.28432314]
[1741184948663,82.86759243,143.71,143.66,6.60632314]
[1741184948977,0.03,143.73,143.66,6.60632314]
[1741184949189,0.03,143.73,143.67,18.64964886]
[1741184950064,0.03,143.73,143.66,6.322]
[1741184950567,0.03,143.73,143.67,0.28432314]
[1741184952500,0.03,143.73,143.67,25.894272]
[1741184952664,0.03,143.73,143.68,18.64964886]
[1741184952870,0.03,143.73,143.7,0.28432314]